fUSD/lending_fUSD_20250329
["ID","MTS","AMOUNT","RATE_DAILY","PERIOD"]
[356824914,1743274227232,-500.0,0.00046575,120]
[356824915,1743274227259,-515.55335861,0.00046575,120]
[356824916,1743274227288,-500.0,0.00046575,120]
[356824917,1743274227316,-500.0,0.00046575,120]
[356824918,1743274227344,-500.0,0.00046575,120]
[356824919,1743274227372,-500.0,0.00046575,120]
[356824920,1743274227401,-500.0,0.00046575,120]
[356824921,1743274227427,-500.0,0.00046575,120]
[356824922,1743274227455,-504.14994569,0.00046575,120]
[356824923,1743274227483,-635.78297425,0.00046575,120]
[356824924,1743274227514,-500.0,0.00046575,120]
[356824925,1743274227543,-555.98700201,0.00046575,120]
[356824926,1743274227571,-500.0,0.00046575,120]
[356824927,1743274227597,-500.0,0.00046575,120]
[356824928,1743274227624,-500.0,0.00046575,120]
[356824929,1743274227650,-500.0,0.00046575,120]
[356824930,1743274227676,-503.74887157,0.00046575,120]
[356824931,1743274227703,-500.0,0.00046575,120]
[356824932,1743274227728,-500.0,0.00046575,120]
[356824933,1743274227755,-500.0,0.00046575,120]
[356824934,1743274227782,-501.37,0.00046575,120]
[356824935,1743274227810,-501.37,0.00046575,120]
[356824936,1743274227836,-515.40500493,0.00046575,120]
[356824937,1743274227863,-501.37,0.00046575,120]
[356824938,1743274227889,-501.37,0.00046575,120]
[356824939,1743274227916,-501.37,0.00046575,120]
[356824940,1743274227942,-501.37,0.00046575,120]
[356824941,1743274227968,-520.11244472,0.00046575,120]
[356824942,1743274227995,-501.37,0.00046575,120]
[356824943,1743274228022,-501.37,0.00046575,120]
[356824944,1743274228050,-501.37,0.00046575,120]
[356824945,1743274228078,-501.37,0.00046575,120]
[356824946,1743274228105,-500.0,0.00046575,120]
[356824947,1743274228131,-501.37,0.00046575,120]
[356824948,1743274228159,-500.0,0.00046575,120]
[356824949,1743274228186,-501.37,0.00046575,120]
[356824950,1743274228213,-240.91962581,0.00046575,120]
[356824951,1743274228242,-501.37,0.00046575,120]
[356824952,1743274228270,-501.37,0.00046575,120]
[356824953,1743274228298,-500.0,0.00046575,120]
[356824954,1743274228326,-500.0,0.00046575,120]
[356824955,1743274228354,-501.37,0.00046575,120]
[356824956,1743274228382,-501.37,0.00046575,120]
[356824957,1743274228410,-501.37,0.00046575,120]
[356824958,1743274228437,-501.37,0.00046575,120]
[356824959,1743274228463,-560.45629662,0.00046575,120]
[356824960,1743274228491,-501.37,0.00046575,120]
[356824961,1743274228521,-501.37,0.00046575,120]
[356824962,1743274228548,-501.37,0.00046575,120]
[356824963,1743274228576,-500.0,0.00046575,120]
[356824964,1743274228604,-500.0,0.00046575,120]
[356824965,1743274228631,-501.37,0.00046575,120]
[356824966,1743274228660,-501.37,0.00046575,120]
[356824967,1743274228687,-501.45,0.00046575,120]
[356824968,1743274228713,-500.0,0.00046575,120]
[356824969,1743274228740,-534.80748459,0.00046575,120]
[356824970,1743274228767,-513.57549793,0.00046575,120]
[356824971,1743274228795,-500.0,0.00046575,120]
[356824972,1743274228822,-500.0,0.00046575,120]
[356824973,1743274228850,-500.0,0.00046575,120]
[356824974,1743274228876,-500.0,0.00046575,120]
[356824975,1743274228903,-514.7346727,0.00046575,120]
[356824976,1743274228931,-500.0,0.00046575,120]
[356824977,1743274228956,-502.27467651,0.00046575,120]
[356824978,1743274228983,-508.43181695,0.00046575,120]
[356824979,1743274229009,-754.16,0.00046575,120]
[356824980,1743274229036,-500.0,0.00046575,120]
[356824981,1743274229063,-500.0,0.00046575,120]
[356824982,1743274229089,-500.0,0.00046575,120]
[356824983,1743274229116,-511.51441691,0.00046575,120]
[356824984,1743274229142,-503.15992969,0.00046575,120]
[356824985,1743274229170,-500.0,0.00046575,120]
[356824986,1743274229197,-2755.38,0.00046575,120]
[356824987,1743274229223,-500.0,0.00046575,120]
[356824988,1743274229249,-500.0,0.00046575,120]
[356824989,1743274229277,-500.0,0.00046575,120]
[356824990,1743274229304,-511.08272676,0.00046575,120]
[356824991,1743274229331,-500.0,0.00046575,120]
[356824992,1743274229359,-500.0,0.00046575,120]
[356824993,1743274229387,-500.0,0.00046575,60]
[356824994,1743274229414,-503.86220305,0.00046575,120]
[356824995,1743274229442,-506.27052793,0.00046575,120]
[356824996,1743274229604,-546.71140683,0.00046575,120]
[356824997,1743274229631,-501.92468317,0.00046575,120]
[356824998,1743274229659,-538.52,0.00046575,120]
[356824999,1743274229687,-500.0,0.00046575,120]
[356825000,1743274229714,-500.0,0.00046575,120]
[356825001,1743274229740,-509.10410013,0.00046575,120]
[356825002,1743274229768,-500.0,0.00046575,120]
[356825003,1743274229794,-827.04,0.00046575,120]
[356825004,1743274229821,-500.0,0.00046575,120]
[356825005,1743274229849,-500.0,0.00046575,120]
[356825006,1743274229875,-505.33725934,0.00046575,120]
[356825007,1743274229901,-500.0,0.00046575,120]
[356825008,1743274229929,-500.0,0.00046575,120]
[356825009,1743274229955,-520.97933501,0.00046575,120]
[356825010,1743274229982,-387.04070475,0.00046575,120]
[356825011,1743274230008,-500.0,0.00046575,120]
[356825012,1743274230036,-500.0,0.00046575,120]
[356825013,1743274230063,-500.0,0.00046575,120]
[356825014,1743274230090,-507.06686076,0.00046575,120]
[356825015,1743274230116,-500.0,0.00046575,120]
[356825016,1743274230142,-500.0,0.00046575,120]
[356825017,1743274230168,-500.0,0.00046575,120]
[356825018,1743274230194,-500.0,0.00046575,120]
[356825019,1743274230220,-500.0,0.00046575,120]
[356825020,1743274230245,-516.7734167,0.00046575,120]
[356825021,1743274230272,-500.0,0.00046575,120]
[356825022,1743274230299,-500.0,0.00046575,120]
[356825023,1743274230325,-500.0,0.00046575,120]
[356825024,1743274230353,-254.98940289,0.00046575,120]
[356825025,1743274230381,-500.0,0.00046575,120]
[356825026,1743274230408,-500.0,0.00046575,120]
[356825027,1743274230434,-573.4740139,0.00046575,120]
[356825028,1743274230460,-503.67380454,0.00046575,120]
[356825029,1743274230486,-518.62431924,0.00046575,120]
[356825030,1743274230514,-500.0,0.00046575,120]
[356825031,1743274230541,-500.0,0.00046575,120]
[356825032,1743274230569,-500.0,0.00046575,120]
[356825033,1743274230596,-500.0,0.00046575,120]
[356825034,1743274230622,-229.22568463,0.00046575,120]
[356825035,1743274230648,-526.4571234,0.00046575,120]
[356825036,1743274230674,-500.0,0.00046575,120]
[356825037,1743274230701,-579.35,0.00046575,120]
[356825038,1743274230728,-500.0,0.00046575,120]
[356825039,1743274230754,-500.0,0.00046575,120]
[356825040,1743274230781,-500.0,0.00046575,120]
[356825041,1743274230807,-500.0,0.00046575,120]
[356825042,1743274230833,-500.0,0.00046575,120]
[356825043,1743274230860,-500.0,0.00046575,120]
[356825044,1743274230886,-500.0,0.00046575,120]
[356825045,1743274230912,-500.0,0.00046575,120]
[356825046,1743274230937,-1237.71,0.00046575,120]
[356825047,1743274230962,-884.89,0.00046575,120]
[356825048,1743274230988,-500.0,0.00046575,120]
[356825049,1743274231015,-500.0,0.00046575,120]
[356825050,1743274231041,-500.0,0.00046575,120]
[356825051,1743274231067,-500.0,0.00046575,120]
[356825052,1743274231093,-504.83393428,0.00046575,120]
[356825053,1743274231119,-500.0,0.00046575,120]
[356825054,1743274231146,-500.0,0.00046575,120]
[356825055,1743274231172,-500.0,0.00046575,120]
[356825056,1743274231198,-500.90753776,0.00046575,120]
[356825057,1743274231223,-500.0,0.00046575,120]
[356825058,1743274231248,-163.93163163,0.00046575,120]
[356825059,1743274231274,-500.0,0.00046575,120]
[356825060,1743274231301,-509.21790294,0.00046575,120]
[356825061,1743274231326,-502.92363648,0.00046575,120]
[356825062,1743274231352,-500.0,0.00046575,120]
[356825063,1743274231377,-500.0,0.00046575,120]
[356825064,1743274231403,-500.0,0.00046575,120]
[356825065,1743274231429,-500.0,0.00046575,120]
[356825066,1743274231455,-500.0,0.00046575,120]
[356825067,1743274231480,-500.0,0.00046575,120]
[356825068,1743274231504,-209.45498309,0.00046575,120]
[356825069,1743274231535,-500.0,0.00046575,120]
[356825070,1743274231561,-500.0,0.00046575,120]
[356825071,1743274231587,-505.82692057,0.00046575,120]
[356825072,1743274231614,-500.0,0.00046575,120]
[356825073,1743274231640,-500.0,0.00046575,120]
[356825074,1743274231666,-500.0,0.00046575,120]
[356825075,1743274231692,-500.0,0.00046575,120]
[356825076,1743274231833,-500.0,0.00046575,120]
[356825077,1743274231874,-1154.41,0.00046575,120]
[356825078,1743274231902,-500.0,0.00046575,120]
[356825079,1743274231928,-500.0,0.00046575,120]
[356825080,1743274231956,-500.0,0.00046575,120]
[356825081,1743274231983,-500.0,0.00046575,120]
[356825083,1743274232010,-500.0,0.00046575,120]
[356825085,1743274232036,-513.19467524,0.00046575,120]
[356825087,1743274232065,-500.0,0.00046575,120]
[356825089,1743274232094,-500.0,0.00046575,120]
[356825090,1743274232121,-1000.0,0.00046575,120]
[356825091,1743274232149,-900.0,0.00046575,120]
[356825092,1743274232175,-174.16708952,0.0004658,120]
[356825093,1743274232203,-174.16708952,0.0004658,120]
[356825094,1743274232230,-174.16708952,0.0004658,120]
[356825095,1743274232258,-174.16,0.0004658,120]
[356825096,1743274232287,-162.55595022,0.0004658,120]
[356825097,1743274232317,-162.55595022,0.0004658,120]
[356825098,1743274232347,-162.55595022,0.0004658,120]
[356825099,1743274232376,-162.55595022,0.0004658,120]
[356825100,1743274232406,-162.55595022,0.0004658,120]
[356825101,1743274232435,-162.55595022,0.0004658,120]
[356825102,1743274232465,-162.55595022,0.0004658,120]
[356825103,1743274232493,-662.45521264,0.0004658,120]
[356825104,1743274232521,-662.45521264,0.0004658,120]
[356825105,1743274232550,-662.45521264,0.0004658,120]
[356825106,1743274232578,-662.45521264,0.0004658,120]
[356825107,1743274232610,-662.45521264,0.0004658,120]
[356825108,1743274232637,-662.45521264,0.0004658,120]
[356825109,1743274232666,-662.45521264,0.0004658,120]
[356825113,1743274232692,-662.45521264,0.0004658,120]
[356825117,1743274232721,-662.45521264,0.0004658,120]
[356825120,1743274232749,-662.45521264,0.0004658,120]
[356825124,1743274232778,-662.45521264,0.0004658,120]
[356825127,1743274232806,-662.45521264,0.0004658,120]
[356825131,1743274232833,-662.45521264,0.0004658,120]
[356825135,1743274232860,-662.45521264,0.0004658,120]
[356825139,1743274232888,-662.45521264,0.0004658,120]
[356825142,1743274232916,-662.45521264,0.0004658,120]
[356825143,1743274232943,-662.45521264,0.0004658,120]
[356825144,1743274232970,-662.45521264,0.0004658,120]
[356825145,1743274232997,-662.45521264,0.0004658,120]
[356825146,1743274233025,-662.45,0.0004658,120]
[356825147,1743274233054,-1545.7288295,0.0004658,120]
[356825148,1743274233083,-1545.7288295,0.0004658,120]
[356825149,1743274233111,-1545.7288295,0.0004658,120]
[356825150,1743274233139,-1545.7288295,0.0004658,120]
[356825151,1743274233168,-1545.7288295,0.0004658,120]
[356825152,1743274233196,-1545.7288295,0.0004658,120]
[356825153,1743274233224,-1545.7288295,0.0004658,120]
[356825154,1743274233253,-1545.7288295,0.0004658,120]
[356825155,1743274233282,-1545.7288295,0.0004658,120]
[356825156,1743274233311,-1545.7288295,0.0004658,120]
[356825157,1743274233340,-1545.7288295,0.0004658,120]
[356825158,1743274233369,-1545.7288295,0.0004658,120]
[356825159,1743274233398,-1545.7288295,0.0004658,120]
[356825160,1743274233427,-1545.7288295,0.0004658,120]
[356825161,1743274233455,-1545.7288295,0.0004658,120]
[356825162,1743274233484,-282.46021937,0.0004658,120]
[356825163,1743274233515,-282.46021937,0.0004658,120]
[356825164,1743274233544,-282.46021937,0.0004658,120]
[356825165,1743274233574,-282.46021937,0.0004658,120]
[356825166,1743274233603,-282.46021937,0.0004658,120]
[356825167,1743274233633,-282.46021937,0.0004658,120]
[356825168,1743274233662,-282.46021937,0.0004658,120]
[356825169,1743274233691,-282.46021937,0.0004658,120]
[356825170,1743274233722,-282.46021937,0.0004658,120]
[356825171,1743274233751,-282.46021937,0.0004658,120]
[356825172,1743274233779,-282.46021937,0.0004658,120]
[356825173,1743274233809,-282.46021937,0.0004658,120]
[356825174,1743274233837,-282.46021937,0.0004658,120]
[356825175,1743274233866,-282.46021937,0.0004658,120]
[356825176,1743274233896,-282.46021937,0.0004658,120]
[356825177,1743274233926,-282.46021937,0.0004658,120]
[356825178,1743274233955,-282.46021937,0.0004658,120]
[356825179,1743274233983,-282.46021937,0.0004658,120]
[356825180,1743274234012,-282.46021937,0.0004658,120]
[356825181,1743274234041,-282.46,0.0004658,120]
[356825182,1743274234202,-659.0738452,0.0004658,120]
[356825183,1743274234233,-659.0738452,0.0004658,120]
[356825184,1743274234263,-659.0738452,0.0004658,120]
[356825185,1743274234292,-659.0738452,0.0004658,120]
[356825186,1743274234321,-659.0738452,0.0004658,120]
[356825187,1743274234349,-659.0738452,0.0004658,120]
[356825188,1743274234378,-659.0738452,0.0004658,120]
[356825189,1743274234408,-659.0738452,0.0004658,120]
[356825190,1743274234436,-659.0738452,0.0004658,120]
[356825191,1743274234464,-659.0738452,0.0004658,120]
[356825192,1743274234492,-659.0738452,0.0004658,120]
[356825193,1743274234522,-659.0738452,0.0004658,120]
[356825194,1743274234551,-659.0738452,0.0004658,120]
[356825195,1743274234579,-659.0738452,0.0004658,120]
[356825196,1743274234607,-659.0738452,0.0004658,120]
[356825197,1743274234633,-157.59,0.000468,120]
[356825198,1743274234661,-583.38986,0.00046849,120]
[356825199,1743274234689,-586.876585,0.00046849,120]
[356825200,1743274234716,-500.0,0.00046849,120]
[356825201,1743274234743,-500.0,0.00046849,120]
[356825202,1743274234770,-510.42316948,0.00046849,120]
[356825203,1743274234798,-500.0,0.00046849,120]
[356825204,1743274234825,-500.0,0.00046849,120]
[356825205,1743274234853,-506.98454741,0.00046849,120]
[356825206,1743274234881,-500.0,0.00046849,120]
[356825207,1743274234912,-500.0,0.00046849,120]
[356825208,1743274234942,-500.0,0.00046849,120]
[356825209,1743274234973,-500.0,0.00046849,120]
[356825210,1743274235002,-500.0,0.00046849,120]
[356825211,1743274235031,-500.0,0.00046849,120]
[356825212,1743274235060,-500.0,0.00046849,120]
[356825213,1743274235087,-514.95968962,0.00046849,120]
[356825214,1743274235116,-584.5576521,0.00046849,120]
[356825215,1743274235144,-500.0,0.00046849,120]
[356825216,1743274235173,-500.0,0.00046849,120]
[356825217,1743274235200,-577.42948085,0.00046849,120]
[356825218,1743274235229,-500.0,0.00046849,120]
[356825219,1743274235258,-500.0,0.00046849,120]
[356825220,1743274235287,-561.21194742,0.00046849,120]
[356825221,1743274235316,-546.63916268,0.00046849,120]
[356825222,1743274235345,-500.0,0.00046849,120]
[356825223,1743274235374,-210.66814504,0.00046849,120]
[356825224,1743274235402,-500.0,0.00046849,120]
[356825225,1743274235431,-500.0,0.00046849,120]
[356825226,1743274235460,-513.5561662,0.00046849,120]
[356825227,1743274235488,-559.82654995,0.00046849,120]
[356825228,1743274235520,-500.0,0.00046849,120]
[356825229,1743274235549,-547.42952268,0.00046849,120]
[356825230,1743274235579,-500.0,0.00046849,120]
[356825231,1743274235608,-515.71581056,0.00046849,120]
[356825232,1743274235636,-500.0,0.00046849,120]
[356825233,1743274235665,-500.0,0.00046849,120]
[356825234,1743274235694,-500.0,0.00046849,120]
[356825235,1743274235721,-508.26955552,0.00046849,120]
[356825236,1743274235750,-546.37047832,0.00046849,120]
[356825237,1743274235778,-500.0,0.00046849,120]
[356825238,1743274235805,-526.77498609,0.00046849,120]
[356825239,1743274235833,-500.0,0.00046849,120]
[356825240,1743274235862,-500.0,0.00046849,120]
[356825241,1743274235890,-1500.0,0.00046849,120]
[356825242,1743274235917,-528.37922936,0.00046849,120]
[356825243,1743274235945,-506.84921198,0.00046849,120]
[356825244,1743274235973,-500.0,0.00046849,120]
[356825245,1743274236000,-500.0,0.00046849,120]
[356825246,1743274236027,-523.96551239,0.00046849,120]
[356825247,1743274236054,-500.0,0.00046849,120]
[356825248,1743274236082,-526.22265437,0.00046849,120]
[356825249,1743274236110,-577.37331064,0.00046849,120]
[356825250,1743274236136,-500.0,0.00046849,120]
[356825251,1743274236163,-527.47282149,0.00046849,120]
[356825252,1743274236189,-547.89907966,0.00046849,120]
[356825253,1743274236216,-507.00234723,0.00046849,120]
[356825254,1743274236242,-550.9994298,0.00046849,120]
[356825255,1743274236270,-284.88968511,0.00046849,120]
[356825256,1743274236299,-595.07464265,0.00046849,120]
[356825257,1743274236441,-500.0,0.00046849,120]
[356825258,1743274236480,-554.56302529,0.00046849,120]
[356825259,1743274236510,-568.59430333,0.00046849,120]
[356825260,1743274236541,-578.67989597,0.00046849,120]
[356825261,1743274236570,-500.0,0.00046849,120]
[356825262,1743274236599,-537.61386189,0.00046849,120]
[356825263,1743274236626,-1470.43,0.00046849,120]
[356825264,1743274236653,-508.9807286,0.00046849,120]
[356825265,1743274236681,-522.54888677,0.00046849,120]
[356825266,1743274236710,-566.18,0.00046849,120]
[356825267,1743274236748,-535.75425416,0.00046849,120]
[356825268,1743274236775,-500.0,0.00046849,120]
[356825269,1743274236805,-516.508615,0.00046849,120]
[356825270,1743274236832,-523.3695761,0.00046849,120]
[356825271,1743274236860,-500.0,0.00046849,120]
[356825272,1743274236887,-527.41293272,0.00046849,120]
[356825273,1743274236913,-560.97761193,0.00046849,120]
[356825274,1743274236940,-500.0,0.00046849,120]
[356825275,1743274236967,-570.48536114,0.00046849,120]
[356825276,1743274236994,-531.66832371,0.00046849,120]
[356825277,1743274237020,-500.0,0.00046849,120]
[356825278,1743274237046,-521.05791126,0.00046849,120]
[356825279,1743274237073,-500.0,0.00046849,120]
[356825280,1743274237100,-161.88500144,0.00046849,120]
[356825281,1743274237128,-500.0,0.00046849,120]
[356825282,1743274237156,-642.56571695,0.00046849,120]
[356825283,1743274237183,-623.52051421,0.00046849,120]
[356825284,1743274237211,-500.0,0.00046849,120]
[356825285,1743274237239,-550.42141982,0.00046849,120]
[356825286,1743274237267,-500.0,0.00046849,120]
[356825287,1743274237294,-574.86043801,0.00046849,120]
[356825288,1743274237321,-548.12814045,0.00046849,120]
[356825289,1743274237349,-535.0821134,0.00046849,120]
[356825290,1743274237376,-542.81980601,0.00046849,120]
[356825291,1743274237403,-500.0,0.00046849,120]
[356825292,1743274237431,-500.0,0.00046849,120]
[356825293,1743274237458,-525.84707456,0.00046849,120]
[356825294,1743274237485,-500.0,0.00046849,120]
[356825295,1743274237515,-538.92157178,0.00046849,120]
[356825296,1743274237543,-540.39978032,0.00046849,120]
[356825297,1743274237571,-452.11926935,0.00046849,120]
[356825298,1743274237599,-538.47003077,0.00046849,120]
[356825299,1743274237626,-509.30426852,0.00046849,120]
[356825300,1743274237652,-500.0,0.00046849,120]
[356825301,1743274237679,-500.0,0.00046849,120]
[356825302,1743274237706,-628.53001352,0.00046849,120]
[356825303,1743274237732,-500.0,0.00046849,120]
[356825304,1743274237758,-500.0,0.00046849,120]
[356825305,1743274237785,-511.44946048,0.00046849,120]
[356825306,1743274237812,-592.33920182,0.00046849,120]
[356825307,1743274237839,-506.74913343,0.00046849,120]
[356825308,1743274237866,-522.68917686,0.00046849,120]
[356825309,1743274237892,-500.0,0.00046849,120]
[356825310,1743274237919,-500.0,0.00046849,120]
[356825311,1743274237944,-579.39603474,0.00046849,120]
[356825312,1743274237971,-533.76798701,0.00046849,120]
[356825313,1743274237998,-500.0,0.00046849,120]
[356825314,1743274238025,-537.34540843,0.00046849,120]
[356825316,1743274238051,-519.15331646,0.00046849,120]
[356825318,1743274238079,-500.0,0.00046849,120]
[356825319,1743274238106,-514.516418,0.00046849,120]
[356825320,1743274238132,-500.0,0.00046849,120]
[356825321,1743274238159,-500.0,0.00046849,120]
[356825322,1743274238185,-500.0,0.00046849,120]
[356825323,1743274238212,-628.09402755,0.00046849,120]
[356825324,1743274238239,-500.0,0.00046849,120]
[356825325,1743274238267,-619.18475051,0.00046849,120]
[356825326,1743274238296,-561.93060181,0.00046849,120]
[356825327,1743274238325,-500.0,0.00046849,120]
[356825328,1743274238353,-500.0,0.00046849,120]
[356825329,1743274238380,-500.0,0.00046849,120]
[356825330,1743274238408,-500.0,0.00046849,120]
[356825331,1743274238436,-500.0,0.00046849,120]
[356825334,1743274238569,-500.0,0.00046849,120]
[356825335,1743274238600,-500.0,0.00046849,120]
[356825336,1743274238629,-500.0,0.00046849,120]
[356825337,1743274238658,-500.0,0.00046849,120]
[356825338,1743274238688,-500.0,0.00046849,120]
[356825339,1743274238717,-500.0,0.00046849,120]
[356825340,1743274238745,-398.2845463,0.00046849,120]
[356825341,1743274238773,-1734.11,0.00046849,120]
[356825342,1743274238800,-500.0,0.00046849,120]
[356825343,1743274238829,-500.0,0.00046849,120]
[356825344,1743274238859,-500.0,0.00046849,120]
[356825345,1743274238888,-518.74796216,0.00046849,120]
[356825346,1743274238916,-500.0,0.00046849,120]
[356825347,1743274238944,-407.97271163,0.00046849,120]
[356825348,1743274238971,-537.33589735,0.00046849,120]
[356825349,1743274238998,-500.0,0.00046849,120]
[356825350,1743274239024,-1197.94,0.00046849,120]
[356825351,1743274239052,-500.0,0.00046849,120]
[356825352,1743274239079,-500.0,0.00046849,120]
[356825353,1743274239106,-500.0,0.00046849,120]
[356825354,1743274239133,-500.0,0.00046849,120]
[356825355,1743274239160,-500.0,0.00046849,120]
[356825356,1743274239186,-541.14772718,0.00046849,120]
[356825357,1743274239212,-500.0,0.00046849,120]
[356825358,1743274239239,-500.0,0.00046849,120]
[356825359,1743274239266,-559.62700005,0.00046849,120]
[356825360,1743274239293,-500.0,0.00046849,120]
[356825361,1743274239320,-1644.35,0.00046849,120]
[356825362,1743274239347,-514.96529489,0.00046849,120]
[356825363,1743274239373,-500.0,0.00046849,120]
[356825364,1743274239400,-500.0,0.00046849,120]
[356825365,1743274239427,-500.0,0.00046849,120]
[356825366,1743274239454,-500.0,0.00046849,120]
[356825367,1743274239480,-500.0,0.00046849,120]
[356825368,1743274239507,-916.03,0.00046849,120]
[356825369,1743274239538,-536.10930053,0.00046849,120]
[356825370,1743274239566,-500.0,0.00046849,120]
[356825371,1743274239593,-500.0,0.00046849,120]
[356825372,1743274239622,-500.0,0.00046849,120]
[356825373,1743274239649,-500.0,0.00046849,120]
[356825374,1743274239675,-500.0,0.00046849,120]
[356825375,1743274239701,-509.08998244,0.00046849,120]
[356825376,1743274239729,-500.0,0.00046849,120]
[356825377,1743274239755,-500.0,0.00046849,120]
[356825378,1743274239784,-500.0,0.00046849,120]
[356825379,1743274239812,-500.0,0.00046849,120]
[356825380,1743274239844,-500.0,0.00046849,120]
[356825381,1743274239874,-500.0,0.00046849,120]
[356825382,1743274239903,-1870.6,0.00046849,120]
[356825383,1743274239932,-500.0,0.00046849,120]
[356825384,1743274239963,-500.0,0.00046849,120]
[356825385,1743274239993,-500.0,0.00046849,120]
[356825386,1743274240022,-626.43855738,0.00046849,120]
[356825387,1743274240051,-561.04737211,0.00046849,120]
[356825388,1743274240079,-500.0,0.00046849,120]
[356825389,1743274240108,-600.79610131,0.00046849,120]
[356825390,1743274240137,-500.0,0.00046849,120]
[356825391,1743274240165,-500.0,0.00046849,120]
[356825392,1743274240193,-500.0,0.00046849,120]
[356825393,1743274240221,-500.0,0.00046849,120]
[356825394,1743274240250,-500.0,0.00046849,120]
[356825397,1743274240283,-500.0,0.00046849,120]
[356825399,1743274240312,-500.0,0.00046849,120]
[356825400,1743274240341,-500.0,0.00046849,120]
[356825401,1743274240369,-500.0,0.00046849,120]
[356825402,1743274240398,-515.85848713,0.00046849,120]
[356825403,1743274240426,-227.77476617,0.00046849,120]
[356825404,1743274240454,-500.0,0.00046849,120]
[356825405,1743274240482,-581.81,0.00046849,120]
[356825406,1743274240511,-304.10832198,0.00046849,120]
[356825407,1743274240658,-500.0,0.00046849,120]
[356825408,1743274240688,-519.7451811,0.00046849,120]
[356825409,1743274240717,-608.19895067,0.00046849,120]
[356825410,1743274240745,-500.0,0.00046849,120]
[356825411,1743274240773,-500.0,0.00046849,120]
[356825413,1743274240799,-507.7330984,0.00046849,120]
[356825414,1743274240827,-578.09614547,0.00046849,120]
[356825416,1743274240856,-500.0,0.00046849,120]
[356825417,1743274240884,-500.0,0.00046849,120]
[356825418,1743274240911,-570.9312138,0.00046849,120]
[356825419,1743274240938,-507.20638039,0.00046849,120]
[356825420,1743274240964,-506.48533376,0.00046849,120]
[356825421,1743274240992,-512.87570394,0.00046849,120]
[356825422,1743274241020,-500.0,0.00046849,120]
[356825423,1743274241047,-500.0,0.00046849,120]
[356825424,1743274241086,-500.0,0.00046849,120]
[356825425,1743274241119,-500.0,0.00046849,120]
[356825426,1743274241150,-390.87772285,0.00046849,120]
[356825427,1743274241179,-500.0,0.00046849,120]
[356825428,1743274241207,-500.0,0.00046849,120]
[356825429,1743274241237,-2884.05,0.00046849,120]
[356825430,1743274241267,-500.0,0.00046849,120]
[356825431,1743274241297,-500.0,0.00046849,120]
[356825432,1743274241330,-500.0,0.00046849,120]
[356825433,1743274241361,-635.46867951,0.00046849,120]
[356825434,1743274241391,-500.0,0.00046849,120]
[356825435,1743274241421,-500.0,0.00046849,120]
[356825436,1743274241451,-177.99134425,0.00046849,120]
[356825437,1743274241482,-306.82680289,0.00046849,120]
[356825438,1743274241515,-183.40146768,0.00046849,120]
[356825439,1743274241546,-500.0,0.00046849,120]
[356825440,1743274241578,-559.21642429,0.00046849,120]
[356825441,1743274241611,-500.0,0.00046849,120]
[356825442,1743274241642,-276.05359838,0.00046849,120]
[356825443,1743274241672,-571.00857471,0.00046849,120]
[356825444,1743274241707,-550.36167965,0.00046849,120]
[356825445,1743274241739,-500.0,0.00046849,120]
[356825446,1743274241770,-500.0,0.00046849,120]
[356825447,1743274241799,-194.71337627,0.00046849,120]
[356825448,1743274241831,-500.0,0.00046849,120]
[356825449,1743274241861,-500.0,0.00046849,120]
[356825450,1743274241891,-500.0,0.00046849,120]